fUST/lending_fUST_20250816
["ID","MTS","AMOUNT","RATE_DAILY","PERIOD"]
[379563607,1755335449878,-460.0,0.00022465,3]
[379563608,1755335449887,-480.0,0.00022465,3]
[379563609,1755335449896,-613.42,0.00022465,3]
[379563610,1755335449905,-151.0,0.00022465,7]
[379563611,1755335449915,-501.12,0.00022465,3]
[379563612,1755335449924,-440.0,0.00022465,3]
[379563613,1755335449933,-858.99,0.00022465,3]
[379563614,1755335449943,-480.0,0.00022465,3]
[379563615,1755335449952,-622.64039663,0.00022465,3]
[379563616,1755335449962,-480.0,0.00022465,3]
[379563617,1755335449971,-480.0,0.00022465,3]
[379563618,1755335449980,-599.28,0.00022465,3]
[379563619,1755335449989,-480.0,0.00022465,3]
[379563620,1755335449999,-1756.74,0.00022465,3]
[379563621,1755335450009,-215.68093138,0.00022465,7]
[379563622,1755335450018,-480.0,0.00022465,3]
[379563623,1755335450027,-639.24,0.00022465,3]
[379563624,1755335450036,-480.0,0.00022465,3]
[379563625,1755335450046,-480.0,0.00022465,3]
[379563626,1755335450057,-480.0,0.00022465,3]
[379563627,1755335450067,-480.0,0.00022465,3]
[379563628,1755335450076,-601.99,0.00022465,3]
[379563629,1755335450085,-480.0,0.00022465,3]
[379563630,1755335450094,-201.5,0.00022465,3]
[379563631,1755335450103,-480.0,0.00022465,3]
[379563632,1755335450112,-480.0,0.00022465,3]
[379563633,1755335450122,-480.0,0.00022465,3]
[379563634,1755335450132,-151.0,0.00022465,7]
[379563635,1755335450141,-440.0,0.00022465,3]
[379563636,1755335450151,-706.54,0.00022465,3]
[379563637,1755335450161,-462.1417622,0.00022465,7]
[379563638,1755335450170,-662.86,0.00022465,3]
[379563639,1755335450180,-480.0,0.00022465,3]
[379563640,1755335450189,-480.0,0.00022465,3]
[379563641,1755335450199,-480.0,0.00022465,3]
[379563642,1755335450208,-321.57668345,0.00022465,3]
[379563643,1755335450217,-385.07452776,0.00022465,3]
[379563644,1755335450227,-490.16332,0.00022465,7]
[379563645,1755335450236,-480.0,0.00022465,3]
[379563646,1755335450245,-490.16332,0.00022465,7]
[379563647,1755335450255,-6039.88,0.00022465,3]
[379563648,1755335450264,-151.0,0.00022465,7]
[379563649,1755335450274,-480.0,0.00022465,3]
[379563650,1755335450283,-1233.31,0.00022465,3]
[379563651,1755335450292,-509.4,0.00022465,3]
[379563652,1755335450301,-480.0,0.00022465,3]
[379563653,1755335450310,-1226.61,0.00022465,3]
[379563654,1755335450320,-440.0,0.00022465,3]
[379563655,1755335450329,-440.0,0.00022465,3]
[379563656,1755335450338,-3329.29,0.00022465,3]
[379563657,1755335450347,-573.61,0.00022465,3]
[379563658,1755335450355,-598.56,0.00022465,3]
[379563659,1755335450364,-151.0,0.00022465,7]
[379563660,1755335450373,-480.0,0.00022465,3]
[379563661,1755335450382,-480.0,0.00022465,3]
[379563662,1755335450391,-151.0,0.00022465,7]
[379563663,1755335450400,-9743.97,0.00022465,3]
[379563664,1755335450410,-501.06,0.00022465,3]
[379563665,1755335450419,-480.0,0.00022465,3]
[379563666,1755335450427,-752.89,0.00022465,3]
[379563667,1755335450436,-480.0,0.00022465,3]
[379563668,1755335450445,-440.0,0.00022465,3]
[379563669,1755335450454,-985.89,0.00022465,3]
[379563670,1755335450463,-151.0,0.00022465,7]
[379563671,1755335450472,-480.0,0.00022465,3]
[379563672,1755335450481,-1744.51,0.00022465,3]
[379563673,1755335450491,-420.0,0.00022465,3]
[379563674,1755335450499,-480.0,0.00022465,3]
[379563675,1755335450508,-151.0,0.00022465,7]
[379563676,1755335450517,-587.12,0.00022465,3]
[379563677,1755335450526,-480.0,0.00022465,3]
[379563678,1755335450535,-420.0,0.00022465,3]
[379563679,1755335450545,-480.0,0.00022465,3]
[379563680,1755335450554,-480.0,0.00022465,3]
[379563681,1755335450563,-480.0,0.00022465,3]
[379563682,1755335450572,-300.0,0.00022465,3]
[379563683,1755335450581,-440.0,0.00022465,3]
[379563684,1755335450590,-480.0,0.00022465,3]
[379563685,1755335450599,-539.01,0.00022465,3]
[379563686,1755335450608,-599.08,0.00022465,3]
[379563687,1755335450618,-480.0,0.00022465,3]
[379563688,1755335450627,-547.33,0.00022465,3]
[379563689,1755335450637,-480.0,0.00022465,3]
[379563690,1755335450646,-400.0,0.00022465,3]
[379563691,1755335450655,-420.0,0.00022465,3]
[379563692,1755335450664,-569.26,0.00022465,3]
[379563693,1755335450674,-480.0,0.00022465,3]
[379563694,1755335450684,-276.82433819,0.00022465,3]
[379563695,1755335450693,-213.63395451,0.00022465,3]
[379563696,1755335450702,-480.0,0.00022465,3]
[379563697,1755335450712,-480.0,0.00022465,3]
[379563698,1755335450721,-391.66502719,0.00022465,3]
[379563699,1755335450730,-480.0,0.00022465,3]
[379563700,1755335450739,-1102.41,0.00022465,3]
[379563701,1755335450748,-480.0,0.00022465,3]
[379563702,1755335450757,-689.57,0.00022465,3]
[379563703,1755335450767,-550.6,0.00022465,3]
[379563704,1755335450776,-480.0,0.00022465,3]
[379563705,1755335450785,-480.0,0.00022465,3]
[379563706,1755335450794,-480.0,0.00022465,3]
[379563707,1755335450803,-865.91,0.00022465,3]
[379563708,1755335450812,-440.0,0.00022465,3]
[379563709,1755335450821,-420.0,0.00022465,3]
[379563710,1755335450830,-400.0,0.00022465,3]
[379563711,1755335450839,-4995.31,0.00022465,3]
[379563712,1755335450848,-480.0,0.00022465,3]
[379563713,1755335450857,-480.0,0.00022465,3]
[379563714,1755335450867,-480.0,0.00022465,3]
[379563715,1755335450877,-50.68108916,0.00022465,3]
[379563716,1755335451026,-429.31891084,0.00022465,3]
[379563717,1755335451035,-571.68107506,0.00022465,3]
[379563718,1755335451224,157.0,0.000287,120]
[379563719,1755335451408,-480.0,0.00021917,3]
[379563720,1755335451418,-288.80892494,0.00022465,3]
[379563721,1755335451428,-480.0,0.00022465,3]
[379563722,1755335451437,-311.8491505,0.00022465,3]
[379563723,1755335451448,-168.1508495,0.00022465,3]
[379563724,1755335451458,-2200.74,0.00022465,3]
[379563725,1755335451467,-480.0,0.00022465,3]
[379563726,1755335451476,-480.0,0.00022465,3]
[379563727,1755335451486,-102.56682022,0.00022465,3]
[379563728,1755335451497,-377.43317978,0.00022465,3]
[379563729,1755335451506,-745.97,0.00022465,3]
[379563730,1755335451516,-493.44,0.00022465,3]
[379563731,1755335451525,-400.0,0.00022465,3]
[379563732,1755335451674,-480.0,0.00022465,3]
[379563733,1755335451684,-480.0,0.00022465,3]
[379563734,1755335451694,-480.0,0.00022465,3]
[379563735,1755335451703,-480.0,0.00022465,3]
[379563736,1755335451713,-240.23940201,0.00022465,3]
[379563737,1755335451722,-151.0,0.00022465,7]
[379563738,1755335451732,-480.0,0.00022465,3]
[379563739,1755335451742,-400.0,0.00022465,3]
[379563740,1755335451751,-490.84,0.00022465,3]
[379563741,1755335451762,-428.54760259,0.00022465,3]
[379563742,1755335451771,-433.72,0.00022465,3]
[379563743,1755335451781,-669.11,0.00022465,3]
[379563744,1755335451790,-480.0,0.00022465,3]
[379563745,1755335451800,-403.01642712,0.00022465,3]
[379563746,1755335451809,-480.0,0.00022465,3]
[379563747,1755335451819,-480.0,0.00022465,3]
[379563748,1755335451828,-500.0,0.00022473,2]
[379563749,1755335451838,-151.0,0.000225,6]
[379563750,1755335451848,-160.0,0.000225,2]
[379563751,1755335451858,-817.52352062,0.00022541,2]
[379563752,1755335451867,-616.65925541,0.00022541,2]
[379563753,1755335451877,-754.23441069,0.00022569,2]
[379563754,1755335451887,-2291.0,0.00022592,2]
[379563755,1755335451896,-2152.0,0.00022594,2]
[379563756,1755335451906,-408.0,0.00022594,2]
[379563757,1755335451917,-151.0,0.000226,6]
[379563758,1755335451926,-2291.0,0.00022611,2]
[379563759,1755335451936,-151.0,0.00022612,7]
[379563760,1755335451946,-151.0,0.00022612,7]
[379563761,1755335451956,-258.266085,0.00022639,7]
[379563762,1755335451966,-258.266085,0.00022639,7]
[379563763,1755335451976,-338.846,0.00022683,2]
[379563764,1755335451986,-151.0,0.000227,5]
[379563765,1755335451996,-151.0,0.00022721,7]
[379563766,1755335452005,-151.0,0.00022721,7]
[379563767,1755335452014,-151.0,0.00022721,7]
[379563768,1755335452024,-152.552934,0.00022721,7]
[379563769,1755335452033,-151.0,0.00022721,7]
[379563770,1755335452043,-151.0,0.00022721,7]
[379563771,1755335452056,-417.15472785,0.00022721,7]
[379563772,1755335452067,-151.0,0.0002273,7]
[379563773,1755335452077,-151.63330462,0.00022739,3]
[379563774,1755335452087,-324.776572,0.00022739,7]
[379563775,1755335452097,-324.776572,0.00022739,7]
[379563776,1755335452107,-324.776572,0.00022739,7]
[379563777,1755335452117,-324.776572,0.00022739,7]
[379563778,1755335452127,-151.0,0.00022739,7]
[379563779,1755335452139,-151.0,0.00022739,7]
[379563780,1755335452149,-151.0,0.00022739,7]
[379563781,1755335452158,-269.392391,0.00022739,7]
[379563782,1755335452168,-269.392391,0.00022739,7]
[379563783,1755335452178,-151.0,0.00022739,7]
[379563784,1755335452188,-151.0,0.00022739,7]
[379563785,1755335452199,-151.0,0.00022739,7]
[379563786,1755335452209,-167.622002,0.00022739,7]
[379563787,1755335452219,-151.0,0.00022739,7]
[379563788,1755335452230,-151.0,0.00022739,7]
[379563789,1755335452240,-151.0,0.00022739,7]
[379563790,1755335452251,-151.0,0.00022739,7]
[379563791,1755335452260,-151.0,0.00022739,7]
[379563792,1755335452270,-151.0,0.00022739,7]
[379563793,1755335452280,-560.159542,0.00022739,7]
[379563794,1755335452290,-560.159542,0.00022739,7]
[379563795,1755335452300,-151.0,0.00022739,7]
[379563796,1755335452309,-151.0,0.00022739,7]
[379563797,1755335452319,-151.0,0.00022739,7]
[379563798,1755335452328,-151.0,0.00022739,7]
[379563799,1755335452337,-151.0,0.00022739,7]
[379563800,1755335452347,-272.560895,0.00022739,7]
[379563801,1755335452357,-544.98642744,0.00022739,3]
[379563802,1755335452366,-298.148894,0.00022739,7]
[379563803,1755335452375,-298.148894,0.00022739,7]
[379563804,1755335452385,-151.0,0.00022739,7]
[379563805,1755335452394,-480.0,0.00022739,3]
[379563806,1755335452405,-151.0,0.00022739,7]
[379563807,1755335452416,-151.0,0.00022739,7]
[379563808,1755335452426,-480.0,0.00022739,3]
[379563809,1755335452436,-480.0,0.00022739,3]
[379563810,1755335452446,-440.0,0.00022739,3]
[379563811,1755335452456,-480.0,0.00022739,3]
[379563812,1755335452466,-480.0,0.00022739,3]
[379563813,1755335452475,-420.0,0.00022739,3]
[379563814,1755335452484,-151.0,0.00022739,7]
[379563815,1755335452494,-480.0,0.00022739,3]
[379563816,1755335452504,-480.0,0.00022739,3]
[379563817,1755335452514,-480.0,0.00022739,3]
[379563818,1755335452524,-480.0,0.00022739,3]
[379563819,1755335452533,-4717.71,0.00022739,3]
[379563820,1755335452543,-480.0,0.00022739,3]
[379563821,1755335452552,-644.07,0.00022739,3]
[379563822,1755335452561,-400.0,0.00022739,3]
[379563823,1755335452570,-440.0,0.00022739,3]
[379563824,1755335452580,-481.7,0.00022739,3]
[379563825,1755335452590,-480.0,0.00022739,3]
[379563826,1755335452599,-480.0,0.00022739,3]
[379563827,1755335452610,-184.11716,0.00022739,7]
[379563828,1755335452619,-184.11716,0.00022739,7]
[379563829,1755335452628,-480.0,0.00022739,3]
[379563830,1755335452639,-480.0,0.00022739,3]
[379563831,1755335452648,-480.0,0.00022739,3]
[379563832,1755335452658,-712.66,0.00022739,3]
[379563833,1755335452668,-480.0,0.00022739,3]
[379563834,1755335452677,-480.0,0.00022739,3]
[379563835,1755335452686,-2965.67,0.00022739,3]
[379563836,1755335452695,-387.94525043,0.00022739,3]
[379563837,1755335452704,-480.0,0.00022739,3]
[379563838,1755335452713,-480.0,0.00022739,3]
[379563839,1755335452722,-480.0,0.00022739,3]
[379563840,1755335452732,-151.0,0.00022739,7]
[379563841,1755335452741,-151.0,0.00022739,7]
[379563842,1755335452751,-480.0,0.00022739,3]
[379563843,1755335452760,-480.0,0.00022739,3]
[379563844,1755335452769,-460.0,0.00022739,3]
[379563845,1755335452779,-420.0,0.00022739,3]
[379563846,1755335452788,-480.0,0.00022739,3]
[379563847,1755335452797,-1300.17,0.00022739,3]
[379563848,1755335452807,-480.0,0.00022739,3]
[379563849,1755335452816,-420.0,0.00022739,3]
[379563850,1755335452825,-480.0,0.00022739,3]
[379563851,1755335452834,-480.0,0.00022739,3]
[379563852,1755335452844,-480.0,0.00022739,3]
[379563853,1755335452853,-480.0,0.00022739,3]
[379563854,1755335452862,-480.0,0.00022739,3]
[379563855,1755335452872,-480.0,0.00022739,3]
[379563856,1755335452881,-480.0,0.00022739,3]
[379563857,1755335452890,-480.0,0.00022739,3]
[379563858,1755335452900,-480.0,0.00022739,3]
[379563859,1755335452909,-782.97,0.00022739,3]
[379563860,1755335452919,-480.0,0.00022739,3]
[379563861,1755335452929,-480.0,0.00022739,3]
[379563862,1755335452938,-480.0,0.00022739,3]
[379563863,1755335452948,-480.0,0.00022739,3]
[379563864,1755335452957,-460.0,0.00022739,3]
[379563865,1755335452966,-460.0,0.00022739,3]
[379563866,1755335452975,-460.0,0.00022739,3]
[379563867,1755335452985,-415.61366461,0.00022739,3]
[379563868,1755335452995,-480.0,0.00022739,3]
[379563869,1755335453004,-320.0,0.00022739,3]
[379563870,1755335453013,-480.0,0.00022739,3]
[379563871,1755335453023,-480.0,0.00022739,3]
[379563872,1755335453033,-151.0,0.00022739,7]
[379563873,1755335453043,-480.0,0.00022739,3]
[379563874,1755335453054,-151.0,0.00022739,7]
[379563875,1755335453066,-480.0,0.00022739,3]
[379563876,1755335453076,-480.0,0.00022739,3]
[379563877,1755335453085,-1032.45,0.00022739,3]
[379563878,1755335453095,-547.9,0.00022739,3]
[379563879,1755335453105,-440.0,0.00022739,3]
[379563880,1755335453115,-440.0,0.00022739,3]
[379563881,1755335453125,-480.0,0.00022739,3]
[379563882,1755335453136,-2000.56,0.00022739,3]
[379563883,1755335453147,-480.0,0.00022739,3]
[379563884,1755335453158,-480.0,0.00022739,3]
[379563885,1755335453167,-480.0,0.00022739,3]
[379563886,1755335453176,-151.0,0.00022739,7]
[379563887,1755335453186,-480.0,0.00022739,3]
[379563888,1755335453195,-480.0,0.00022739,3]
[379563889,1755335453205,-480.0,0.00022739,3]
[379563890,1755335453214,-816.47,0.00022739,3]
[379563891,1755335453224,-480.0,0.00022739,3]
[379563892,1755335453234,-480.0,0.00022739,3]
[379563893,1755335453243,-440.0,0.00022739,3]
[379563894,1755335453252,-480.0,0.00022739,3]
[379563895,1755335453261,-2619.14,0.00022739,3]
[379563896,1755335453271,-1601.81,0.00022739,3]
[379563897,1755335453280,-480.0,0.00022739,3]
[379563898,1755335453289,-564.35,0.00022739,3]
[379563899,1755335453299,-460.0,0.00022739,3]
[379563900,1755335453308,-237.80418431,0.00022739,3]
[379563901,1755335453318,-480.0,0.00022739,3]
[379563902,1755335453328,-480.0,0.00022739,3]
[379563903,1755335453337,-480.0,0.00022739,3]
[379563904,1755335453347,-564.7,0.00022739,3]
[379563905,1755335453356,-558.02013117,0.00022739,3]
[379563906,1755335453365,-460.0,0.00022739,3]
[379563907,1755335453375,-480.0,0.00022739,3]
[379563908,1755335453384,-480.0,0.00022739,3]
[379563909,1755335453393,-480.0,0.00022739,3]
[379563910,1755335453403,-480.0,0.00022739,3]
[379563911,1755335453412,-613.42,0.00022739,3]
[379563912,1755335453421,-151.0,0.00022739,7]
[379563913,1755335453431,-151.0,0.00022739,7]
[379563914,1755335453440,-501.12,0.00022739,3]
[379563915,1755335453449,-151.0,0.00022739,7]
[379563916,1755335453459,-858.99,0.00022739,3]
[379563917,1755335453468,-241.24073886,0.00022739,3]
[379563918,1755335453477,-480.0,0.00022739,3]
[379563919,1755335453486,-599.28,0.00022739,3]
[379563920,1755335453495,-480.0,0.00022739,3]
[379563921,1755335453505,-480.0,0.00022739,3]
[379563922,1755335453515,-1756.74,0.00022739,3]
[379563923,1755335453524,-480.0,0.00022739,3]
[379563924,1755335453533,-639.24,0.00022739,3]
[379563925,1755335453542,-480.0,0.00022739,3]
[379563926,1755335453551,-480.0,0.00022739,3]
[379563927,1755335453561,-480.0,0.00022739,3]
[379563928,1755335453570,-601.99,0.00022739,3]
[379563929,1755335453579,-480.0,0.00022739,3]
[379563930,1755335453589,-480.0,0.00022739,3]
[379563931,1755335453598,-480.0,0.00022739,3]
[379563932,1755335453608,-151.0,0.00022739,7]
[379563933,1755335453618,-706.54,0.00022739,3]
[379563934,1755335453628,-662.86,0.00022739,3]
[379563935,1755335453638,-607.29,0.00022739,3]
[379563936,1755335453649,-480.0,0.00022739,3]
[379563937,1755335453659,-480.0,0.00022739,3]
[379563938,1755335453669,-490.16332,0.00022739,7]
[379563939,1755335453678,-480.0,0.00022739,3]
[379563940,1755335453688,-490.16332,0.00022739,7]
[379563941,1755335453698,-6039.88,0.00022739,3]
[379563942,1755335453708,-288.695698,0.00022739,7]
[379563943,1755335453717,-282.97116056,0.00022739,3]
[379563944,1755335453726,-1233.31,0.00022739,3]
[379563945,1755335453735,-509.4,0.00022739,3]
[379563946,1755335453745,-480.0,0.00022739,3]
[379563947,1755335453754,-1226.61,0.00022739,3]
[379563948,1755335453764,-3329.29,0.00022739,3]
[379563949,1755335453773,-573.61,0.00022739,3]
[379563950,1755335453782,-151.0,0.00022739,7]
[379563951,1755335453792,-480.0,0.00022739,3]
[379563952,1755335453801,-380.0,0.00022739,3]
[379563953,1755335453810,-9743.97,0.00022739,3]
[379563954,1755335453820,-501.06,0.00022739,3]
[379563955,1755335453829,-480.0,0.00022739,3]
[379563956,1755335453838,-480.0,0.00022739,3]
[379563957,1755335453847,-752.89,0.00022739,3]
[379563958,1755335453856,-985.89,0.00022739,3]
[379563959,1755335453866,-151.0,0.00022739,7]
[379563960,1755335453876,-480.0,0.00022739,3]
[379563961,1755335453885,-174.97133773,0.00022739,3]
[379563962,1755335453901,-1346.69227202,0.00022739,3]
[379563963,1755335453913,-222.84639025,0.00022739,3]
[379563964,1755335453923,-480.0,0.00022739,3]
[379563965,1755335453932,-151.0,0.00022739,7]
[379563966,1755335453942,-587.12,0.00022739,3]
[379563967,1755335453952,-203.67309381,0.00022739,3]
[379563968,1755335453962,-400.0,0.00022739,3]
[379563969,1755335453971,-480.0,0.00022739,3]
[379563970,1755335453981,-584.40105092,0.00022739,3]
[379563971,1755335453990,-220.20042824,0.00022739,3]
[379563972,1755335454001,-318.23649186,0.00022739,3]
[379563973,1755335454154,157.0,0.000287,120]
[379563974,1755335454328,-499.02,0.00021917,3]
[379563975,1755335454338,-324.983035,0.00022465,7]
[379563976,1755335454350,-0.5730799,0.00022739,3]
[379563977,1755335454359,-599.08,0.00022739,3]
[379563978,1755335454368,-480.0,0.00022739,3]
[379563979,1755335454378,-547.33,0.00022739,3]
[379563980,1755335454387,-480.0,0.00022739,3]
[379563981,1755335454397,-569.26,0.00022739,3]
[379563982,1755335454405,-420.0,0.00022739,3]
[379563983,1755335454415,-480.0,0.00022739,3]
[379563984,1755335454424,-480.0,0.00022739,3]
[379563985,1755335454434,-1102.41,0.00022739,3]
[379563986,1755335454443,-480.0,0.00022739,3]
[379563987,1755335454453,-689.57,0.00022739,3]
[379563988,1755335454462,-550.6,0.00022739,3]
[379563989,1755335454481,-480.0,0.00022739,3]
[379563990,1755335454491,-480.0,0.00022739,3]
[379563991,1755335454499,-400.0,0.00022739,3]
[379563992,1755335454509,-865.91,0.00022739,3]
[379563993,1755335454518,-480.0,0.00022739,3]
[379563994,1755335454527,-480.0,0.00022739,3]
[379563995,1755335454536,-480.0,0.00022739,3]
[379563996,1755335454545,-860.49,0.00022739,3]
[379563997,1755335454554,-480.0,0.00022739,3]
[379563998,1755335454563,-90.7738841,0.00022739,3]
[379563999,1755335454574,-389.2261159,0.00022739,3]
[379564000,1755335454583,-2200.74,0.00022739,3]
[379564001,1755335454592,-440.0,0.00022739,3]
[379564002,1755335454600,-745.97,0.00022739,3]
[379564003,1755335454609,-480.0,0.00022739,3]
[379564004,1755335454618,-493.44,0.00022739,3]
[379564005,1755335454627,-480.0,0.00022739,3]
[379564006,1755335454635,-480.0,0.00022739,3]
[379564007,1755335454644,-460.0,0.00022739,3]
[379564008,1755335454653,-480.0,0.00022739,3]
[379564009,1755335454664,-151.0,0.00022739,7]
[379564010,1755335454674,-254.25036365,0.00022739,3]
[379564011,1755335454683,-490.84,0.00022739,3]
[379564012,1755335454692,-669.11,0.00022739,3]
[379564013,1755335454701,-480.0,0.00022739,3]
[379564014,1755335454710,-167.70559163,0.00022739,3]
[379564015,1755335454719,-324.983035,0.00022739,7]
[379564016,1755335454727,-396.2153682,0.00022795,2]
[379564017,1755335454737,-324.776572,0.00022813,7]
[379564018,1755335454746,-324.776568,0.00022813,7]
[379564019,1755335454755,-500.0,0.00022843,2]
[379564020,1755335454764,-500.0,0.00022843,2]
[379564021,1755335454773,-500.0,0.00022843,2]
[379564022,1755335454782,-507.40023033,0.00022843,2]
[379564023,1755335454791,-500.0,0.00022843,2]
[379564024,1755335454799,-500.0,0.00022843,2]
[379564025,1755335454808,-500.71225786,0.00022843,2]
[379564026,1755335454817,-500.0,0.00022843,2]
[379564027,1755335454826,-500.0,0.00022843,2]
[379564028,1755335454835,-972.0,0.00022877,2]
[379564029,1755335454844,-637.0,0.00022877,2]
[379564030,1755335454853,-2894.62,0.000229,7]
[379564031,1755335454861,-2595.75,0.00022919,2]
[379564032,1755335454870,-1734.76890659,0.00022932,2]
[379564033,1755335454880,-1901.40545407,0.0002298,2]
[379564034,1755335454889,-800.0,0.00022983,2]
[379564035,1755335454898,-2291.0,0.00022988,2]
[379564036,1755335454907,-153.0,0.00023,2]
[379564037,1755335454917,-4702.0,0.00023,30]
[379564038,1755335454927,-5000.0,0.00023,2]
[379564039,1755335454935,-3000.0,0.00023,2]
[379564040,1755335454944,-160.0,0.00023,2]
[379564041,1755335454954,-216.80276362,0.00023,3]
[379564042,1755335454963,-160.0,0.00023,3]
[379564043,1755335454972,-3000.0,0.0002301,2]
[379564044,1755335454981,-151.0,0.00023013,7]
[379564045,1755335454990,-151.0,0.00023013,7]
[379564046,1755335454999,-151.0,0.00023013,7]
[379564047,1755335455008,-151.0,0.00023013,7]
[379564048,1755335455017,-151.0,0.00023013,7]
[379564049,1755335455026,-560.159542,0.00023013,7]
[379564050,1755335455035,-560.159542,0.00023013,7]
[379564051,1755335455044,-151.0,0.00023013,7]
[379564052,1755335455054,-151.0,0.00023013,7]
[379564053,1755335455067,-151.0,0.00023013,7]
[379564054,1755335455075,-151.0,0.00023013,7]
[379564055,1755335455084,-255.47,0.00023013,7]
[379564056,1755335455094,-240.368146,0.00023013,7]
[379564057,1755335455104,-151.0,0.00023013,7]
[379564058,1755335455114,-151.0,0.00023013,7]
[379564059,1755335455123,-298.148894,0.00023013,7]
[379564060,1755335455133,-298.148894,0.00023013,7]
[379564061,1755335455142,-151.0,0.00023013,7]
[379564062,1755335455151,-400.0,0.00023013,3]
[379564063,1755335455162,-480.0,0.00023013,3]
[379564064,1755335455172,-480.0,0.00023013,3]
[379564065,1755335455182,-151.0,0.00023013,7]
[379564066,1755335455192,-420.0,0.00023013,3]
[379564067,1755335455202,-480.0,0.00023013,3]
[379564068,1755335455212,-360.0,0.00023013,3]
[379564069,1755335455222,-480.0,0.00023013,3]
[379564070,1755335455232,-4717.71,0.00023013,3]
[379564071,1755335455242,-480.0,0.00023013,3]
[379564072,1755335455252,-644.07,0.00023013,3]
[379564073,1755335455261,-258.266085,0.00023013,7]
[379564074,1755335455271,-258.266085,0.00023013,7]
[379564075,1755335455281,-151.894825,0.00023013,7]
[379564076,1755335455290,-1000.0,0.00023013,2]
[379564077,1755335455300,-1040.49368,0.00023013,2]
[379564078,1755335455309,-481.7,0.00023013,3]
[379564079,1755335455319,-480.0,0.00023013,3]
[379564080,1755335455329,-480.0,0.00023013,3]
[379564081,1755335455338,-184.11716,0.00023013,7]
[379564082,1755335455348,-184.11716,0.00023013,7]
[379564083,1755335455357,-151.0,0.00023013,7]
[379564084,1755335455368,-151.0,0.00023013,7]
[379564085,1755335455377,-480.0,0.00023013,3]
[379564086,1755335455388,-480.0,0.00023013,3]
[379564087,1755335455397,-482.44,0.00023013,3]
[379564088,1755335455407,-712.66,0.00023013,3]
[379564089,1755335455418,-480.0,0.00023013,3]
[379564090,1755335455429,-380.0,0.00023013,3]
[379564091,1755335455446,-2965.67,0.00023013,3]
[379564092,1755335455456,-220.06358525,0.00023013,3]
[379564093,1755335455465,-480.0,0.00023013,3]
[379564094,1755335455475,-151.0,0.00023013,7]
[379564095,1755335455485,-151.0,0.00023013,7]
[379564096,1755335455495,-480.0,0.00023013,3]
[379564097,1755335455505,-480.0,0.00023013,3]
[379564098,1755335455514,-1300.17,0.00023013,3]
[379564099,1755335455524,-320.0,0.00023013,3]
[379564100,1755335455533,-480.0,0.00023013,3]
[379564101,1755335455543,-481.02,0.00023013,3]
[379564102,1755335455552,-419.99,0.00023013,3]
[379564103,1755335455563,-400.0,0.00023013,3]
[379564104,1755335455572,-480.0,0.00023013,3]
[379564105,1755335455582,-480.0,0.00023013,3]
[379564106,1755335455591,-782.97,0.00023013,3]